[Event "Commonwealth CC-Open 2024"]
[Site "Malacca"]
[Date "2024.02.27"]
[Round "9.6"]
[White "Vengadasalam, Ajay"]
[Black "Tippa, Aswath Srisai"]
[Result "0-1"]
[ECO "A06"]
[WhiteElo "1287"]
[BlackElo "1411"]
[Annotator "NA"]
[PlyCount "42"]
[EventDate "2024.02.21"]
[EventCountry "MAS"]
[SourceTitle "playchess.com"]
[Source "ChessBase"]
[SourceQuality "1"]
[TimeControl "5400+30"]

1. Nf3 {[%emt 1:31:00]} Nf6 {[%emt 0:10:59]} 2. d3 {[%emt 0:00:00]} d5 {[%emt 0:00:07]} 3. c3 {[%emt 0:00:00]} c5 {[%emt 0:00:19]} 4. Nbd2 {[%emt 0:00:00]} Nc6 {[%emt 0:00:08]} 5. Qa4 {[%emt 0:00:00]} Bd7 {[%emt 0:00:28]} 6. Qb3 {[%emt 0:00:00]} Qc7 {[%emt 0:00:53]} 7. e4 {[%emt 0:00:00]} e6 {[%emt 1:21:06]} 8. Be2 {[%emt 0:00:00]} Bd6 {[%emt 0:00:00]} 9. Qc2 {[%emt 0:00:00]} h6 {[%emt 0:00:00]} 10. h3 {[%emt 0:00:00]} O-O {[%emt 0:00:00]} 11. g4 {[%emt 0:00:00]} Bf4 {[%emt 0:00:00]} 12. Rg1 {[%emt 0:00:00]} Rfd8 {[%emt 0:00:00]} 13. g5 {[%emt 0:00:00]} hxg5 {[%emt 0:00:00]} 14. Nxg5 {[%emt 0:00:00]} Ne5 {[%emt 0:00:00]} 15. h4 {[%emt 0:00:00]} a6 {[%emt 0:00:00]} 16. h5 {[%emt 0:00:00]} Bb5 {[%emt 0:00:00]} 17. a4 {[%emt 0:00:00]} dxe4 {[%emt 0:00:00]} 18. dxe4 {[%emt 0:00:00]} Bd3 {[%emt 0:00:00]} 19. Qd1 {[%emt 0:00:00]} Bxe2 {[%emt 0:00:00]} 20. Kxe2 {[%emt 0:00:00]} Nd3 {[%emt 0:00:00]} 21. Ngf3 {[%emt 0:00:00]} Qc6 {[%emt 0:00:00]} 0-1

[Event "Commonwealth CC-Open 2024"]
[Site "Malacca"]
[Date "2024.02.27"]
[Round "9.7"]
[White "Iniyan, Pa"]
[Black "Srija, Seshadri"]
[Result "1-0"]
[ECO "D43"]
[WhiteElo "2515"]
[BlackElo "2291"]
[Annotator "ChessBase"]
[PlyCount "65"]
[EventDate "2024.02.21"]
[EventCountry "MAS"]
[SourceTitle "playchess.com"]
[Source "ChessBase"]
[SourceQuality "1"]
[TimeControl "5400+30"]

1. d4 d5 2. c4 c6 3. Nf3 Nf6 4. Nc3 e6 5. Bg5 h6 6. Bh4 dxc4 7. e4 g5 8. Bg3 b5 9. Be2 Bb7 10. Qc2 Nh5 11. Rd1 Nd7 12. d5 Nxg3 13. hxg3 Bg7 14. dxe6 fxe6 15. e5 Qe7 16. Qg6+ Kd8 17. Nd4 Kc8 18. Nxe6 Bxe5 19. Rxh6 Nf8 20. Qf5 Bxc3+ 21. bxc3 Rxh6 22. Rd8+ Qxd8 23. Nxd8+ Kc7 24. Qf7+ Nd7 25. Nxb7 Rf8 26. Qe7 Rhf6 27. Nc5 R8f7 28. Ne6+ Kb6 29. Qd8+ Ka6 30. Nc7+ Kb7 31. Ne8 Re6 32. Qc7+ Ka6 {[%emt 1:21:10]} 33. Nd6 {[%emt 0:56:17]} 1-0

[Event "Commonwealth CC-Open 2024"]
[Site "Malacca"]
[Date "2024.02.27"]
[Round "9.9"]
[White "Nandhidhaa, P V"]
[Black "Chong, Jin Cheng"]
[Result "1/2-1/2"]
[ECO "B38"]
[WhiteElo "2305"]
[BlackElo "1706"]
[Annotator "ChessBase"]
[PlyCount "71"]
[EventDate "2024.02.21"]
[EventCountry "MAS"]
[SourceTitle "playchess.com"]
[Source "ChessBase"]
[SourceQuality "1"]
[TimeControl "5400+30"]

1. e4 c5 2. Nf3 g6 3. d4 cxd4 4. Nxd4 Bg7 5. c4 Nc6 6. Be3 Nf6 7. Nc3 O-O 8. Be2 d6 9. O-O Bd7 10. h3 Nxd4 11. Bxd4 Bc6 12. Qc2 a5 13. b3 Nd7 14. Bxg7 Kxg7 15. Rad1 Qb6 16. Rfe1 Ne5 17. Qb2 f5 18. exf5 gxf5 19. Nd5 Bxd5 20. Rxd5 Rac8 21. Rb5 Qa7 22. Rxe5 dxe5 23. Qxe5+ Rf6 24. Qxe7+ Rf7 25. Qg5+ Kh8 26. Bh5 Rg7 27. Qf6 Qc5 28. Be8 f4 29. h4 f3 30. g3 Ra8 31. Re5 Qd4 32. h5 Qd1+ 33. Kh2 Qd4 34. Kg1 Qd1+ 35. Kh2 Qd4 {[%emt 1:19:08]} 36. Kg1 {[%emt 1:12:39]} 1/2-1/2

[Event "Commonwealth CC-Open 2024"]
[Site "Malacca"]
[Date "2024.02.27"]
[Round "9.10"]
[White "Varshini V Kundar"]
[Black "Sethuraman, S.P."]
[Result "0-1"]
[ECO "B08"]
[WhiteElo "1096"]
[BlackElo "2594"]
[Annotator "RC"]
[PlyCount "66"]
[EventDate "2024.02.21"]
[EventCountry "MAS"]
[SourceTitle "playchess.com"]
[Source "ChessBase"]
[SourceQuality "1"]
[TimeControl "5400+30"]

1. d4 g6 2. e4 Bg7 3. Nf3 d6 4. Nc3 a6 5. a4 Nf6 6. Bc4 Nc6 7. h3 O-O 8. Qe2 e5 9. dxe5 dxe5 10. O-O Nd4 11. Nxd4 exd4 12. Nd5 Ne8 13. a5 Nd6 14. Bd3 Be6 15. c4 dxc3 16. Nxc3 c6 17. Be3 Nb5 18. Nxb5 axb5 19. Bb6 Qe7 20. f4 Rfe8 21. Qd2 Qd7 22. e5 Bf8 23. Qc3 Qe7 24. f5 gxf5 25. Bxf5 Bg7 26. Bc5 Qg5 27. g4 Bc4 28. Rfe1 Rad8 29. b3 Be6 30. Bb1 Rd5 31. Be4 Bxe5 32. Qc1 Qxc1 33. Raxc1 {[%emt 1:43:21]} Rxc5 {[%emt 1:09:44]} 0-1

[Event "Commonwealth CC-Open 2024"]
[Site "Malacca"]
[Date "2024.02.27"]
[Round "9.11"]
[White "Wong, Zhenyong Jayden"]
[Black "Nguyen, Thu Giang"]
[Result "1-0"]
[ECO "E04"]
[WhiteElo "2406"]
[BlackElo "2072"]
[Annotator "ChessBase"]
[PlyCount "91"]
[EventDate "2024.02.21"]
[EventCountry "MAS"]
[SourceTitle "playchess.com"]
[Source "ChessBase"]
[SourceQuality "1"]
[TimeControl "5400+30"]

1. d4 e6 2. g3 d5 3. Bg2 Nf6 4. c4 dxc4 5. Nf3 a6 6. O-O Nc6 7. Nbd2 b5 8. b3 c3 9. Nb1 b4 10. a3 Rb8 11. axb4 Bxb4 12. Qc2 Bb7 13. Rd1 Ne7 14. Nxc3 Bxc3 15. Qxc3 Ne4 16. Qc2 Bd5 17. Rb1 Nd6 18. Ne5 Bxg2 19. Kxg2 O-O 20. Ba3 Rb5 21. Rdc1 Qa8+ 22. Kg1 Nd5 23. f3 f5 24. Qc6 Qxc6 25. Rxc6 Rb6 26. Rxb6 Nxb6 27. Rc1 Rb8 28. Rc6 Rd8 29. Rxc7 Nb5 30. Rc6 Nxa3 31. Rxb6 Nc2 32. Nc6 Ra8 33. Kf2 Kf8 34. e4 fxe4 35. fxe4 Na3 36. Ke3 g5 37. h4 h6 38. hxg5 hxg5 39. Nb8 a5 40. Nd7+ Kf7 41. Ne5+ Kf6 42. Ng4+ Ke7 43. Rb7+ Kd6 44. Ne5 Nc2+ 45. Kd3 Nb4+ {[%emt 1:52:28]} 46. Ke2 {[%emt 1:13:41]} 1-0

[Event "Commonwealth CC-Open 2024"]
[Site "Malacca"]
[Date "2024.02.27"]
[Round "9.12"]
[White "Gong, Qianyun"]
[Black "Kavin Mohan"]
[Result "1-0"]
[ECO "C00"]
[WhiteElo "2263"]
[BlackElo "1803"]
[Annotator "ChessBase"]
[PlyCount "66"]
[EventDate "2024.02.21"]
[EventCountry "MAS"]
[SourceTitle "playchess.com"]
[Source "ChessBase"]
[SourceQuality "1"]
[TimeControl "5400+30"]

1. e4 e6 2. d3 d5 3. Nd2 c5 4. Ngf3 Nf6 5. g3 Nc6 6. Bg2 b6 7. O-O Bb7 8. Re1 Be7 9. a3 Qc7 10. c3 dxe4 11. dxe4 Rd8 12. Qb3 Na5 13. Qb5+ Qd7 14. Qe2 O-O 15. b4 Nc6 16. e5 Nd5 17. Ne4 cxb4 18. axb4 Qc7 19. Bb2 a6 20. c4 Ndxb4 21. Nf6+ Bxf6 22. exf6 Nd3 23. Qe3 Ne7 24. fxe7 Qxe7 25. Ba3 Qc7 26. Reb1 Nc5 27. Qe5 Qc8 28. Qh5 Be4 29. Rxb6 Nd7 30. Bxf8 Nxb6 31. Bxg7 Bxf3 32. Qg5 Bh5 33. Bh6+ {[%emt 0:58:35]} Bg6 {[%emt 0:42:01]} 1-0

[Event "Commonwealth CC-Open 2024"]
[Site "Malacca"]
[Date "2024.02.27"]
[Round "9.14"]
[White "Wijesuriya, G P Y"]
[Black "Pon, Matt"]
[Result "1-0"]
[ECO "C06"]
[WhiteElo "1616"]
[BlackElo "2202"]
[Annotator "ChessBase"]
[PlyCount "41"]
[EventDate "2024.02.21"]
[EventCountry "MAS"]
[SourceTitle "playchess.com"]
[Source "ChessBase"]
[SourceQuality "1"]
[TimeControl "5400+30"]

1. e4 e6 2. d4 d5 3. Nd2 Nf6 4. e5 Nfd7 5. Bd3 c5 6. c3 Nc6 7. Ne2 cxd4 8. cxd4 f6 9. Nf4 Nxd4 10. Qh5+ Ke7 11. exf6+ Nxf6 12. Ng6+ hxg6 13. Qxh8 Kf7 14. O-O e5 15. Nb3 Nxb3 16. axb3 Bf5 17. Bxf5 gxf5 18. Bg5 Bc5 19. Qh3 Qd7 20. Bxf6 Kxf6 {[%emt 0:19:14]} 21. Rfe1 {[%emt 0:03:20]} 1-0

[Event "Commonwealth CC-Open 2024"]
[Site "Malacca"]
[Date "2024.02.27"]
[Round "9.15"]
[White "Bhagyashree Patil"]
[Black "Gomes, Mary Ann"]
[Result "0-1"]
[ECO "A48"]
[WhiteElo "1885"]
[BlackElo "2332"]
[Annotator "ChessBase"]
[PlyCount "32"]
[EventDate "2024.02.21"]
[EventCountry "MAS"]
[SourceTitle "playchess.com"]
[Source "ChessBase"]
[SourceQuality "1"]
[TimeControl "5400+30"]

1. d4 Nf6 2. Bf4 d6 3. Nf3 g6 4. Nc3 Bg7 5. Qd2 h6 6. h4 Bf5 7. O-O-O Nbd7 8. Re1 Ne4 9. Nxe4 Bxe4 10. g4 c5 11. Rh3 Rc8 12. e3 cxd4 13. Bd3 Bxd3 14. Qxd3 Nc5 15. Qd2 Ne4 16. Qe2 {[%emt 0:53:02]} d3 {[%emt 0:42:25]} 0-1

[Event "Commonwealth CC-Open 2024"]
[Site "Malacca"]
[Date "2024.02.27"]
[Round "9.17"]
[White "Masli, Muhd Nur Daie"]
[Black "Soumya, Swaminathan"]
[Result "1-0"]
[ECO "B67"]
[WhiteElo "1867"]
[BlackElo "2259"]
[Annotator "ChessBase"]
[PlyCount "77"]
[EventDate "2024.02.21"]
[EventCountry "MAS"]
[SourceTitle "playchess.com"]
[Source "ChessBase"]
[SourceQuality "1"]
[TimeControl "5400+30"]

1. e4 c5 2. Nf3 Nc6 3. d4 cxd4 4. Nxd4 Nf6 5. Nc3 d6 6. Bg5 e6 7. Qd2 a6 8. O-O-O Bd7 9. f3 Nxd4 10. Qxd4 Be7 11. g4 b5 12. Be3 Rb8 13. g5 Nh5 14. Qd2 b4 15. Ne2 Qa5 16. Kb1 e5 17. Ng3 Be6 18. b3 Nxg3 19. hxg3 Rd8 20. Qf2 Rb8 21. f4 f6 22. gxf6 gxf6 23. Bh3 Bxh3 24. Rxh3 Qc7 25. Qe2 Rc8 26. Rh2 Kd7 27. fxe5 fxe5 28. Rh5 Rcg8 29. Rxe5 Rxg3 30. Bf4 Rg6 31. Red5 Qb7 32. e5 Re8 33. Qe4 Qc6 34. Qf5+ Kd8 35. exd6 Bf6 36. d7 Reg8 37. Rc5 Rg1 38. Rxc6 Rxd1+ {[%emt 1:49:21]} 39. Bc1 {[%emt 0:56:42]} 1-0

[Event "Commonwealth CC-Open 2024"]
[Site "Malacca"]
[Date "2024.02.27"]
[Round "9.19"]
[White "M Mohd Nur, Megat Muhd Irfan"]
[Black "Chitlange Sakshi"]
[Result "0-1"]
[ECO "D02"]
[WhiteElo "1601"]
[BlackElo "2210"]
[Annotator "ChessBase"]
[PlyCount "122"]
[EventDate "2024.02.21"]
[EventCountry "MAS"]
[SourceTitle "playchess.com"]
[Source "ChessBase"]
[SourceQuality "1"]
[TimeControl "5400+30"]

1. d4 d5 2. Nf3 Nf6 3. c3 e6 4. Bf4 Bd6 5. Bg3 O-O 6. e3 c5 7. Nbd2 Qc7 8. Bd3 Nbd7 9. O-O e5 10. dxe5 Nxe5 11. Nxe5 Bxe5 12. Qa4 Bxg3 13. hxg3 Re8 14. Qf4 Qe7 15. e4 Nxe4 16. Rfe1 Be6 17. Nxe4 dxe4 18. Qxe4 g6 19. Rad1 Qc7 20. Bc4 Bd7 21. Qf4 Qxf4 22. gxf4 Bc6 23. Re5 Rxe5 24. fxe5 Re8 25. f4 Kg7 26. Rd6 Re7 27. Kf2 g5 28. g3 gxf4 29. gxf4 Rd7 30. Rxd7 Bxd7 31. a3 Kg6 32. Kg3 h6 33. b4 b6 34. Bd3+ Bf5 35. Bc4 Bc2 36. Bd5 Bd3 37. a4 a5 38. bxa5 bxa5 39. e6 fxe6 40. Bxe6 Kf6 41. Bd7 Ke7 42. Bc6 Kf6 43. Bd7 Bc2 44. Kg4 Bf5+ 45. Bxf5 h5+ 46. Kxh5 Kxf5 47. c4 Kxf4 48. Kg6 Ke5 49. Kf7 Kd4 50. Ke6 Kxc4 51. Kd6 Kb4 52. Kd5 Kxa4 53. Kc4 Ka3 54. Kc3 a4 55. Kc2 Kb4 56. Kb2 c4 57. Ka2 Kc3 58. Ka3 Kd2 59. Kb2 c3+ 60. Kb1 c2+ 61. Ka2 {[%emt 1:39:30]} a3 {[%emt 1:42:03]} 0-1

[Event "Commonwealth CC-Open 2024"]
[Site "Malacca"]
[Date "2024.02.27"]
[Round "9.20"]
[White "Anderson, Gavin"]
[Black "Genkeswaran, Genivan"]
[Result "1-0"]
[ECO "D61"]
[WhiteElo "2159"]
[BlackElo "1805"]
[Annotator "ChessBase"]
[PlyCount "147"]
[EventDate "2024.02.21"]
[EventCountry "MAS"]
[SourceTitle "playchess.com"]
[Source "ChessBase"]
[SourceQuality "1"]
[TimeControl "5400+30"]

1. d4 d5 2. c4 e6 3. Nc3 Nf6 4. Bg5 Nbd7 5. e3 c6 6. Nf3 Be7 7. Qc2 h6 8. Bh4 O-O 9. Rd1 b6 10. Bd3 Bb7 11. O-O c5 12. Qe2 Ne4 13. Bxe7 Nxc3 14. bxc3 Qxe7 15. cxd5 exd5 16. a4 c4 17. Bf5 Rad8 18. Ra1 Rb8 19. Rfb1 Bc6 20. Rb2 Rfe8 21. Bc2 g6 22. Nd2 a6 23. Nf1 b5 24. axb5 axb5 25. Rab1 Ra8 26. f3 Ra3 27. Qd2 Nb6 28. e4 Kg7 29. e5 Bd7 30. f4 Na4 31. Bxa4 bxa4 32. Ne3 Bf5 33. Nxd5 Qd8 34. Nf6 Bxb1 35. Nxe8+ Qxe8 36. Rxb1 Rb3 37. Rf1 Qb8 38. d5 Rb1 39. Qd4 Rxf1+ 40. Kxf1 Qb1+ 41. Ke2 Qc2+ 42. Ke3 Qc1+ 43. Qd2 Qg1+ 44. Ke4 a3 45. d6 Qb1+ 46. Ke3 a2 47. d7 a1=Q 48. d8=Q Qe1+ 49. Kf3 Qxc3+ 50. Qxc3 Qxc3+ 51. Kg4 Qd3 52. Qxd3 cxd3 53. Kf3 Kf8 54. Ke3 Ke7 55. Kxd3 Ke6 56. Ke4 h5 57. g3 Kd7 58. Kd5 Ke7 59. h3 Kd7 60. g4 hxg4 61. hxg4 Ke7 62. f5 f6 63. e6 g5 64. Kc6 Ke8 65. Kd6 Kd8 66. Kc5 Ke8 67. e7 Kxe7 68. Kc6 Ke8 69. Kd6 Kf7 70. Kd7 Kf8 71. Ke6 Kg7 72. Ke7 Kh7 73. Kxf6 Kh6 {[%emt 1:26:45]} 74. Ke7 {[%emt 1:46:08]} 1-0

[Event "Commonwealth CC-Open 2024"]
[Site "Malacca"]
[Date "2024.02.27"]
[Round "9.22"]
[White "Smith, Robert W"]
[Black "Siddharth, Sai"]
[Result "1-0"]
[ECO "B23"]
[WhiteElo "2152"]
[BlackElo "1760"]
[Annotator "ChessBase"]
[PlyCount "115"]
[EventDate "2024.02.21"]
[EventCountry "MAS"]
[SourceTitle "playchess.com"]
[Source "ChessBase"]
[SourceQuality "1"]
[TimeControl "5400+30"]

1. e4 c5 2. Nc3 e6 3. f4 Nc6 4. Nf3 d5 5. Bb5 d4 6. Ne2 Nf6 7. Bxc6+ bxc6 8. d3 Be7 9. O-O O-O 10. b3 a5 11. a4 Qb6 12. Ng3 Re8 13. Bd2 Bf8 14. Ne5 Be7 15. Qf3 Ba6 16. Kh1 Qc7 17. Rae1 Rab8 18. Nh5 Nxh5 19. Qxh5 g6 20. Qh3 Bf8 21. Ng4 Bg7 22. e5 Qd8 23. Re4 c4 24. dxc4 c5 25. Nf2 Bb7 26. Ree1 Ra8 27. Ne4 Bxe4 28. Rxe4 Qc7 29. Ree1 Rab8 30. Qd3 Ra8 31. Rf3 Qc6 32. Qe4 Qc7 33. Kg1 f5 34. exf6 Bxf6 35. g3 Bg7 36. Rf2 Rad8 37. Qd3 Qb6 38. Rfe2 Kh8 39. h4 Rd6 40. Rh2 e5 41. fxe5 Rxe5 42. Rhe2 Rde6 43. Rxe5 Rxe5 44. Rxe5 Bxe5 45. Qf3 Qd8 46. Bxa5 Qe7 47. Bd2 Kg7 48. Kg2 Bf6 49. a5 Qe6 50. Kf2 Qh3 51. a6 d3 52. c3 Bxh4 53. gxh4 Qh2+ 54. Ke3 Qe5+ 55. Kxd3 Qd6+ 56. Qd5 Qxa6 57. Qd7+ Kg8 {[%emt 1:52:30]} 58. Bh6 {[%emt 1:56:00]} 1-0

[Event "Commonwealth CC-Open 2024"]
[Site "Malacca"]
[Date "2024.02.27"]
[Round "9.23"]
[White "Kapoor, Satvik"]
[Black "Mahmood Shah, Mukhriez Shah"]
[Result "0-1"]
[ECO "E02"]
[WhiteElo "1791"]
[BlackElo "2007"]
[Annotator "ChessBase"]
[PlyCount "116"]
[EventDate "2024.02.21"]
[EventCountry "MAS"]
[SourceTitle "playchess.com"]
[Source "ChessBase"]
[SourceQuality "1"]
[TimeControl "5400+30"]

1. d4 Nf6 2. c4 e6 3. Nf3 d5 4. g3 dxc4 5. Qa4+ Bd7 6. Qxc4 Bc6 7. Bg2 Be7 8. Nc3 O-O 9. O-O a6 10. Bf4 b5 11. Qd3 b4 12. Nd1 Bb5 13. Qc2 Nc6 14. Ne3 Rc8 15. Rfd1 Nd5 16. Ne5 Nxe5 17. Nxd5 exd5 18. Bxe5 Qd7 19. e4 c6 20. Qb3 Bc4 21. Qf3 dxe4 22. Qxe4 Bd5 23. Qe2 a5 24. b3 Rfe8 25. Qd3 g5 26. Bxd5 cxd5 27. g4 Qxg4+ 28. Qg3 Qxg3+ 29. Bxg3 f5 30. Be5 Rc2 31. Re1 Kf7 32. Kf1 Rec8 33. Re2 Rxe2 34. Kxe2 Rc2+ 35. Kf3 Bf6 36. Bxf6 Kxf6 37. a3 Rc3+ 38. Ke2 Rxb3 39. axb4 Rxb4 40. Rxa5 Rxd4 41. Ra6+ Ke5 42. Kf3 h5 43. Rg6 g4+ 44. Ke2 h4 45. Rg8 Ra4 46. Re8+ Kf4 47. Rd8 Ra2+ 48. Ke1 Ra1+ 49. Ke2 Rh1 50. Rxd5 Rxh2 51. Kf1 Rh1+ 52. Kg2 Re1 53. Rd4+ Re4 54. Rd3 h3+ 55. Kg1 Re1+ 56. Kh2 Rf1 57. Rd4+ Kf3 58. Rd3+ {[%emt 1:11:17]} Kxf2 {[%emt 1:08:51]} 0-1

[Event "Commonwealth CC-Open 2024"]
[Site "Malacca"]
[Date "2024.02.27"]
[Round "9.24"]
[White "Milligan, Helen"]
[Black "Lim, Xiao Xian Tobias"]
[Result "1/2-1/2"]
[ECO "C11"]
[WhiteElo "1941"]
[BlackElo "1584"]
[Annotator "ChessBase"]
[PlyCount "104"]
[EventDate "2024.02.21"]
[EventCountry "MAS"]
[SourceTitle "playchess.com"]
[Source "ChessBase"]
[SourceQuality "1"]
[TimeControl "5400+30"]

1. e4 e6 2. d4 d5 3. Nc3 Nf6 4. e5 Nfd7 5. f4 c5 6. Nf3 Nc6 7. Be3 cxd4 8. Nxd4 Qb6 9. Qd2 Qxb2 10. Rb1 Qa3 11. Bb5 Nxd4 12. Bxd4 a6 13. Bxd7+ Bxd7 14. Rxb7 Bb4 15. O-O Bc8 16. Rb6 O-O 17. Rb1 Bc5 18. R6b3 Qa5 19. Qf2 Bxd4 20. Qxd4 Bd7 21. f5 Rfc8 22. fxe6 Bxe6 23. h3 h6 24. Rd1 Rc4 25. Qd3 Qc5+ 26. Kh1 d4 27. Qe4 Rc8 28. Ne2 Bd5 29. Qd3 Rxc2 30. Rbb1 Qc6 31. Nxd4 Bxg2+ 32. Kg1 Qa8 33. Nxc2 Be4 34. Qd7 Kh7 35. Rd2 Rxc2 36. Rxc2 Bxc2 37. Re1 Qf3 38. Qg4 Qc3 39. Qh4 Bf5 40. Re2 Bxh3 41. Qe4+ g6 42. Qe3 Qc8 43. Qf4 Be6 44. Rh2 h5 45. Rd2 Qc1+ 46. Kh2 Qc7 47. Qf6 Qc3 48. Rd8 Qh3+ 49. Kg1 Qg3+ 50. Kh1 Qh3+ 51. Kg1 Qg3+ 52. Kh1 {[%emt 1:46:57]} Qh3+ {[%emt 1:55:15]} 1/2-1/2